bitfinex-derivatives/quotes_BTCF0:USTF0_20240903
["timestamp","ask_amount","ask_price","bid_price","bid_amount"]
[1725346559635,0.211,58934.0,58928.0,0.05514218]
[1725346559636,0.067872,58931.0,58928.0,0.05514218]
[1725346559843,0.0908,58929.0,58928.0,0.00424902]
[1725346560141,0.067877,58927.0,58926.0,0.05089316]
[1725346560446,0.178677,58927.0,58926.0,0.05089316]
[1725346561141,0.06788,58924.0,58923.0,0.05089316]
[1725346561336,0.06788,58924.0,58919.0,0.06785745]
[1725346561337,0.067882,58923.0,58919.0,0.06785745]
[1725346561545,0.0908,58920.0,58919.0,0.06785745]
[1725346561738,0.067882,58923.0,58918.0,0.06785745]
[1725346561942,0.137882,58923.0,58922.0,0.05088078]
[1725346562337,0.137882,58923.0,58921.0,0.05088078]
[1725346562542,0.0008,58922.0,58921.0,0.05088078]
[1725346562750,0.0708,58922.0,58921.0,0.05088078]
[1725346563144,0.0708,58922.0,58920.0,0.14088078]
[1725346563448,0.0008,58921.0,58920.0,0.09]
[1725346563749,0.0708,58921.0,58920.0,0.09]
[1725346563959,0.0708,58921.0,58920.0,0.14088078]
[1725346564138,0.0708,58921.0,58920.0,0.09]
[1725346564550,0.0008,58921.0,58920.0,0.157885]
[1725346565051,0.0018,58921.0,58920.0,0.157885]
[1725346567341,0.0018,58921.0,58920.0,0.2087036]
[1725346569139,0.0018,58921.0,58920.0,0.22574245]
[1725346570340,0.0018,58921.0,58920.0,0.157885]
[1725346572740,0.0018,58921.0,58920.0,0.067885]
[1725346572946,0.0018,58921.0,58920.0,0.157885]
[1725346573747,0.0018,58921.0,58919.0,0.36172]
[1725346574049,0.0008,58920.0,58919.0,0.3608]
[1725346574747,0.068685,58920.0,58919.0,0.3608]
[1725346575349,0.068685,58920.0,58919.0,0.4508]
[1725346575655,0.069685,58920.0,58919.0,0.4508]
[1725346576036,0.070685,58920.0,58919.0,0.4508]
[1725346576556,0.0028,58920.0,58919.0,0.518686]
[1725346576751,0.0028,58920.0,58919.0,1.69570345]
[1725346577044,0.0028,58920.0,58919.0,1.627846]
[1725346582342,0.0008,58924.0,58919.0,1.695732]
[1725346582558,0.0008,58924.0,58923.0,0.157881]
[1725346582852,0.3608,58936.0,58923.0,0.157881]
[1725346582853,0.004,58931.0,58930.0,0.067873]
[1725346583050,0.3608,58936.0,58933.0,0.067869]
[1725346583249,0.03025446,58935.0,58934.0,0.09]
[1725346583452,0.03025446,58935.0,58934.0,0.157869]
[1725346583750,0.00025446,58935.0,58934.0,0.157869]
[1725346584359,0.01125446,58935.0,58934.0,0.157869]
[1725346584548,0.02125446,58935.0,58934.0,0.157869]
[1725346586045,0.02225446,58935.0,58934.0,0.157869]
[1725346589055,0.01425446,58935.0,58934.0,0.157869]
[1725346589453,0.00625446,58935.0,58934.0,0.157869]
[1725346597361,0.00625446,58935.0,58934.0,0.20865289]
[1725346597759,0.00625446,58935.0,58934.0,0.157869]
[1725346597954,0.00625446,58935.0,58934.0,0.518669]
[1725346598169,0.00625446,58935.0,58934.0,0.63273625]
[1725346598370,0.00625446,58935.0,58934.0,0.564969]
[1725346599767,0.00625446,58935.0,58934.0,1.674009]
[1725346601168,0.00625446,58935.0,58934.0,1.723009]
[1725346602466,0.00625446,58935.0,58934.0,1.123009]
[1725346603672,0.00625446,58935.0,58934.0,1.076709]
[1725346605076,0.00625446,58935.0,58934.0,0.567669]
[1725346606071,0.00025446,58935.0,58934.0,0.568669]
[1725346606371,0.00125446,58935.0,58934.0,0.63636657]
[1725346607366,0.00125446,58935.0,58934.0,0.568669]
[1725346607568,0.00125446,58935.0,58934.0,0.429669]
[1725346607774,0.00125446,58935.0,58934.0,0.22657816]
[1725346607965,0.00125446,58935.0,58934.0,0.158869]
[1725346609175,0.11125446,58935.0,58934.0,0.001]
[1725346609373,0.17912146,58935.0,58934.0,0.001]
[1725346609577,0.26912146,58935.0,58934.0,0.001]
[1725346609893,0.17912146,58935.0,58934.0,0.001]
[1725346610582,0.17912146,58935.0,58934.0,0.091]
[1725346611670,0.17912146,58935.0,58934.0,0.001]
[1725346611883,0.17912146,58935.0,58934.0,0.091]
[1725346613085,0.17912146,58935.0,58934.0,0.14179421]
[1725346613377,0.17912146,58935.0,58934.0,0.091]
[1725346618167,0.17912146,58935.0,58934.0,0.001]
[1725346618374,0.17912146,58935.0,58934.0,0.091]
[1725346621378,0.11125446,58935.0,58934.0,0.091]
[1725346624083,0.11125446,58935.0,58934.0,0.158869]
[1725346625577,0.11125446,58935.0,58934.0,0.20971047]
[1725346625787,0.11125446,58935.0,58934.0,0.158869]
[1725346627079,0.11125446,58935.0,58934.0,0.20970754]
[1725346628883,0.11125446,58935.0,58934.0,0.14183854]
[1725346629275,0.11125446,58935.0,58934.0,0.091]
[1725346629475,0.11125446,58935.0,58934.0,0.001]
[1725346629689,0.11125446,58935.0,58934.0,0.091]
[1725346631389,0.17912146,58935.0,58934.0,0.091]
[1725346632491,0.17912146,58935.0,58934.0,0.15870916]
[1725346632785,0.17912146,58935.0,58934.0,0.091]
[1725346633398,0.17912146,58935.0,58934.0,0.15870916]
[1725346635692,0.17912146,58935.0,58934.0,0.091]
[1725346637805,0.17912146,58935.0,58934.0,0.001]
[1725346637992,1.71682846,58935.0,58934.0,0.001]
[1725346638289,1.81262846,58935.0,58934.0,0.001]
[1725346639393,0.067885,58920.0,58919.0,0.0008]
[1725346639596,0.999485,58920.0,58919.0,0.0008]
[1725346639795,2.109045,58920.0,58919.0,0.0008]
[1725346640997,2.115045,58920.0,58919.0,0.0008]
[1725346641404,2.118045,58920.0,58919.0,0.0008]
[1725346643487,2.12216765,58920.0,58919.0,0.0008]
[1725346647496,2.19005265,58920.0,58919.0,0.0008]
[1725346648803,2.10005265,58920.0,58919.0,0.0008]
[1725346648992,2.19005265,58920.0,58919.0,0.0008]
[1725346653497,1.08089265,58920.0,58919.0,0.0008]
[1725346653905,0.1294,58920.0,58919.0,0.0008]
[1725346654197,0.0094,58920.0,58919.0,0.429486]
[1725346654702,0.0094,58920.0,58919.0,1.538646]
[1725346655509,0.0094,58920.0,58919.0,1.54283113]
[1725346656711,0.06787,58933.0,58919.0,1.47494513]
[1725346657012,0.06787,58933.0,58932.0,0.0904]
[1725346658419,0.07087,58933.0,58932.0,0.0904]
[1725346658606,0.003,58933.0,58932.0,0.0904]
[1725346659103,0.008,58933.0,58932.0,0.0904]
[1725346659710,0.014,58933.0,58932.0,0.0914]
[1725346660015,0.028,58933.0,58932.0,0.1406]
[1725346660612,0.028,58933.0,58932.0,0.569271]
[1725346663415,0.028,58933.0,58932.0,0.57340152]
[1725346674016,0.028,58933.0,58932.0,0.21260152]
[1725346676518,0.028,58933.0,58932.0,0.12260152]
[1725346678016,0.09587,58933.0,58932.0,0.05473052]
[1725346678511,0.08187,58933.0,58932.0,0.05473052]
[1725346678859,0.07287,58933.0,58932.0,0.14373052]
[1725346679022,0.08187,58933.0,58932.0,0.14473052]
[1725346679211,0.014,58933.0,58932.0,0.14473052]
[1725346680308,0.014,58933.0,58932.0,0.00553052]
[1725346680823,0.017,58933.0,58932.0,0.00553052]
[1725346681820,0.08487,58933.0,58932.0,0.00553052]
[1725346682318,0.017,58933.0,58932.0,0.09553052]
[1725346683424,0.08487,58933.0,58932.0,0.09553052]
[1725346683724,0.08487,58933.0,58932.0,0.05638523]
[1725346683927,0.08487,58933.0,58932.0,0.05638533]
[1725346684122,0.08487,58933.0,58932.0,0.00553052]
[1725346697328,0.44567,58933.0,58932.0,0.00553052]
[1725346698735,0.72354,58933.0,58932.0,0.0014]
[1725346701134,0.65567,58933.0,58932.0,0.0014]
[1725346701731,0.56567,58933.0,58932.0,0.0014]
[1725346705243,0.65567,58933.0,58932.0,0.0014]
[1725346709739,0.72354,58933.0,58932.0,0.0014]
[1725346714641,0.36274,58933.0,58932.0,0.0014]
[1725346714845,0.72354,58933.0,58932.0,0.0014]
[1725346716041,0.63354,58933.0,58932.0,0.0014]
[1725346718743,0.72354,58933.0,58932.0,0.0014]
[1725346721446,0.79141,58933.0,58932.0,0.0014]
[1725346723446,0.43061,58933.0,58932.0,0.0014]
[1725346723645,0.79141,58933.0,58932.0,0.0014]
[1725346724243,0.43061,58933.0,58932.0,0.0014]
[1725346724443,0.79141,58933.0,58932.0,0.0014]
[1725346731353,0.135754,58927.0,58926.0,0.00415143]
[1725346731557,0.135756,58926.0,58925.0,0.0482]
[1725346731762,0.246156,58926.0,58925.0,0.0482]
[1725346732063,0.245756,58926.0,58925.0,0.0482]
[1725346732756,0.245756,58926.0,58925.0,0.05230248]
[1725346733359,0.247756,58926.0,58925.0,0.05230248]
[1725346733559,0.247756,58926.0,58925.0,0.10320621]
[1725346734256,0.247756,58926.0,58925.0,0.05230248]
[1725346735050,0.179878,58926.0,58925.0,0.05230248]
[1725346735368,0.069878,58926.0,58925.0,0.05230248]
[1725346735664,0.069878,58926.0,58925.0,0.09800248]
[1725346741668,0.002,58926.0,58925.0,0.16588148]
[1725346741870,0.002,58926.0,58925.0,0.52668148]
[1725346742771,0.002,58926.0,58925.0,1.03580148]
[1725346743973,0.002,58926.0,58925.0,0.52668148]
[1725346744475,0.002,58926.0,58925.0,0.59449971]
[1725346746477,0.002,58926.0,58925.0,0.68449971]
[1725346746770,0.002,58926.0,58925.0,0.61668148]
[1725346747365,0.002,58926.0,58925.0,0.21672899]
[1725346747564,0.002,58926.0,58925.0,0.30672899]
[1725346747774,0.002,58926.0,58925.0,0.25588148]
[1725346748165,0.002,58926.0,58925.0,0.30672899]
[1725346748565,0.002,58926.0,58925.0,0.25588148]
[1725346755476,0.002,58926.0,58925.0,0.00410248]
[1725346755770,0.132,58926.0,58925.0,0.05084112]
[1725346756779,0.199878,58926.0,58923.0,0.0464]
[1725346756975,0.0004,58924.0,58923.0,0.0464]
[1725346757769,0.0004,58924.0,58922.0,0.15781823]
[1725346757985,0.0004,58924.0,58923.0,0.003]
[1725346758174,0.067879,58925.0,58923.0,0.003]
[1725346758372,0.06788,58924.0,58923.0,0.003]
[1725346758778,0.06788,58924.0,58923.0,0.001]
[1725346759082,0.06788,58924.0,58923.0,0.003]
[1725346768792,0.18788,58924.0,58923.0,0.003]
[1725346770184,0.54868,58924.0,58923.0,0.003]
[1725346775086,0.18788,58924.0,58923.0,0.003]
[1725346775288,0.54868,58924.0,58923.0,0.003]
[1725346779898,0.18788,58924.0,58923.0,0.003]
[1725346780297,0.54868,58924.0,58923.0,0.003]
[1725346780996,0.18788,58924.0,58923.0,0.003]
[1725346781199,0.54868,58924.0,58923.0,0.003]
[1725346790010,0.18788,58924.0,58923.0,0.003]
[1725346790210,0.54868,58924.0,58923.0,0.003]
[1725346794404,0.18788,58924.0,58923.0,0.003]
[1725346794621,0.54868,58924.0,58923.0,0.003]
[1725346798508,0.18788,58924.0,58923.0,0.003]
[1725346798706,0.54868,58924.0,58923.0,0.003]
[1725346800713,0.42868,58924.0,58923.0,0.0005]
[1725346804027,0.42618,58924.0,58923.0,0.0005]
[1725346804226,0.3608,58924.0,58923.0,0.0005]
[1725346804426,0.0004,58927.0,58926.0,0.067878]
[1725346804619,0.0004,58927.0,58926.0,0.158278]
[1725346804820,0.0004,58927.0,58926.0,1.267398]
[1725346805021,0.0004,58927.0,58926.0,0.79668851]
[1725346805248,0.0004,58927.0,58926.0,0.30455649]
[1725346805432,0.0004,58927.0,58926.0,0.0904]
[1725346805821,0.0014,58927.0,58926.0,0.0904]
[1725346806023,0.0014,58927.0,58926.0,1.267398]
[1725346806225,0.0014,58927.0,58926.0,1.48155329]
[1725346806526,0.0014,58927.0,58926.0,1.48144649]
[1725346806726,0.0044,58927.0,58926.0,1.48144649]
[1725346807438,0.0044,58927.0,58926.0,1.4814038]
[1725346808429,0.0044,58927.0,58926.0,1.267398]
[1725346809434,0.004,58934.0,58933.0,0.06787]
[1725346809627,0.00025446,58935.0,58934.0,0.067869]
[1725346809825,0.00025446,58935.0,58934.0,0.114969]
[1725346810935,0.01225446,58935.0,58934.0,0.115969]
[1725346812237,0.01225446,58935.0,58934.0,0.17080965]
[1725346812462,0.01225446,58935.0,58934.0,0.17079797]
[1725346812639,0.02225446,58935.0,58934.0,0.53159797]
[1725346813231,0.02225446,58935.0,58934.0,0.48084908]
[1725346813934,0.02225446,58935.0,58934.0,0.53159797]
[1725346814438,0.02225446,58935.0,58934.0,0.48084908]
[1725346824657,0.02225446,58935.0,58934.0,0.53156954]
[1725346825745,0.02225446,58935.0,58934.0,0.48084908]
[1725346825956,0.004,58941.0,58940.0,0.067862]
[1725346826152,0.067852,58949.0,58941.0,0.06786]
[1725346826458,0.067852,58949.0,58947.0,0.09]
[1725346826639,0.187852,58949.0,58948.0,0.0004]
[1725346828055,0.201852,58949.0,58948.0,0.0004]
[1725346829348,0.570652,58949.0,58948.0,0.0014]
[1725346831540,0.5028,58949.0,58948.0,0.0014]
[1725346832862,0.3828,58949.0,58948.0,0.0014]
[1725346833152,0.3828,58949.0,58948.0,0.00563583]
[1725346834151,0.022,58949.0,58948.0,0.00563583]
[1725346834454,0.3828,58949.0,58948.0,0.00563583]
[1725346836451,0.3748,58949.0,58948.0,0.00463583]
[1725346836753,0.3658,58949.0,58948.0,0.00463583]
[1725346836955,0.3658,58949.0,58948.0,0.00563583]
[1725346836956,0.3798,58949.0,58948.0,0.00563583]
[1725346837156,0.3788,58949.0,58948.0,0.00563583]
[1725346837652,0.3788,58949.0,58948.0,0.12419903]
[1725346838352,0.007,58949.0,58948.0,0.08104581]
[1725346838655,0.3678,58949.0,58948.0,0.13175601]
[1725346838855,0.007,58949.0,58948.0,0.08104581]
[1725346839154,0.3678,58949.0,58948.0,0.07248883]
[1725346839557,0.007,58949.0,58948.0,0.07248883]
[1725346839759,0.007,58949.0,58948.0,0.08080137]
[1725346842944,0.007,58949.0,58948.0,0.07248883]
[1725346843260,0.007,58949.0,58948.0,0.08099149]
[1725346846366,0.007,58949.0,58948.0,0.07248883]
[1725346846848,0.007,58949.0,58948.0,0.08089728]
[1725346847846,0.007,58949.0,58948.0,0.07248883]
[1725346848261,0.007,58949.0,58948.0,0.08079009]
[1725346849648,0.007,58949.0,58948.0,0.07248883]
[1725346850268,0.007,58949.0,58948.0,0.08085119]
[1725346851670,0.007,58949.0,58948.0,0.14858177]
[1725346852756,0.007,58949.0,58948.0,0.08085119]
[1725346853763,0.007,58949.0,58948.0,0.23860306]
[1725346853963,0.007,58949.0,58948.0,0.17085119]
[1725346856166,0.007,58949.0,58948.0,0.22167612]
[1725346856755,0.007,58949.0,58948.0,0.17085119]
[1725346856954,0.007,58949.0,58948.0,0.23860306]
[1725346857161,0.007,58949.0,58948.0,0.17085119]
[1725346857470,0.00025446,58954.0,58953.0,0.067847]
[1725346857665,0.00025446,58954.0,58953.0,0.56986486]
[1725346859065,0.00025446,58954.0,58953.0,0.57086486]
[1725346859066,0.00725446,58954.0,58953.0,0.57086486]
[1725346859460,0.01525446,58954.0,58953.0,0.57186486]
[1725346860261,0.01525446,58954.0,58953.0,0.21106486]
[1725346860566,0.01525446,58954.0,58953.0,0.0924]
[1725346862366,0.01525446,58954.0,58953.0,0.16015715]
[1725346863066,0.01525446,58954.0,58953.0,0.0924]
[1725346865372,0.01525446,58954.0,58953.0,0.16015715]
[1725346868466,0.01525446,58954.0,58953.0,0.0924]
[1725346869785,0.01525446,58954.0,58953.0,0.160247]
[1725346870261,0.01525446,58954.0,58953.0,1.810247]
[1725346870463,0.01525446,58954.0,58953.0,0.2280452]
[1725346870665,0.01525446,58954.0,58953.0,0.160247]
[1725346870882,0.01525446,58954.0,58953.0,1.810247]
[1725346871266,0.01525446,58954.0,58953.0,1.87803229]
[1725346873172,0.01525446,58954.0,58953.0,2.23883229]
[1725346875273,0.01525446,58954.0,58953.0,2.171047]
[1725346876115,0.01525446,58954.0,58953.0,0.3632]
[1725346876284,0.01525446,58954.0,58953.0,0.4532]
[1725346876881,0.10645446,58954.0,58953.0,0.4532]
[1725346877186,0.17430046,58954.0,58953.0,0.52098529]
[1725346879792,0.12900046,58954.0,58953.0,0.52098529]
[1725346881589,0.12900046,58954.0,58953.0,0.4532]
[1725346881995,0.12900046,58954.0,58953.0,0.52099035]
[1725346882618,0.12900046,58954.0,58953.0,0.4532]
[1725346883325,0.08310046,58954.0,58953.0,0.4532]
[1725346884205,0.08310046,58954.0,58953.0,0.50404843]
[1725346885104,0.01525446,58954.0,58953.0,0.50404843]
[1725346885305,0.01525446,58954.0,58953.0,0.4532]
[1725346885898,0.004,58958.0,58957.0,0.067842]
[1725346886103,0.004,58963.0,58957.0,0.14125484]
[1725346886299,0.3608,58965.0,58964.0,0.09]
[1725346886507,0.3608,58965.0,58964.0,0.0904]
[1725346886508,0.3808,58965.0,58964.0,0.0904]
[1725346886806,0.3808,58965.0,58964.0,0.09]
[1725346887907,0.3848,58965.0,58964.0,0.091]
[1725346888409,0.3678,58965.0,58964.0,0.092]
[1725346889403,0.007,58965.0,58964.0,0.092]
[1725346889604,0.3678,58965.0,58964.0,0.092]
[1725346889805,0.007,58965.0,58964.0,0.092]
[1725346890117,0.3678,58965.0,58964.0,0.092]
[1725346890810,0.3678,58965.0,58964.0,0.09614413]
[1725346891009,0.007,58965.0,58964.0,0.09614413]
[1725346897518,0.007,58965.0,58964.0,0.52477813]
[1725346897714,0.007,58965.0,58964.0,0.63857603]
[1725346897909,0.007,58965.0,58964.0,0.57077813]
[1725346898224,0.007,58965.0,58964.0,0.52477813]
[1725346903123,0.007,58965.0,58964.0,0.57557117]
[1725346903315,0.007,58965.0,58964.0,0.52477813]
[1725346905712,0.007,58965.0,58964.0,0.59252575]
[1725346906618,0.004,58965.0,58964.0,0.59152575]
[1725346907123,0.00025446,58970.0,58964.0,0.52277813]
[1725346907321,0.00025446,58970.0,58969.0,0.0904]
[1725346908416,0.07025446,58970.0,58969.0,0.0904]
[1725346910324,0.07325446,58970.0,58969.0,0.0904]
[1725346910716,0.14108146,58970.0,58969.0,0.0904]
[1725346914425,0.14108146,58970.0,58969.0,0.14117799]
[1725346916816,0.20890846,58970.0,58969.0,0.05117799]
[1725346917021,1.16842846,58970.0,58969.0,0.05122743]
[1725346917424,1.16842846,58970.0,58969.0,0.0004]
[1725346918220,1.16842846,58970.0,58969.0,0.05122743]
[1725346919231,1.16842846,58970.0,58969.0,0.0004]
[1725346920137,0.65970846,58970.0,58969.0,0.0004]
[1725346921326,0.65970846,58970.0,58969.0,0.05122743]
[1725346921531,0.65970846,58970.0,58969.0,0.0004]
[1725346923335,0.56970846,58970.0,58969.0,0.0004]
[1725346923650,0.56970846,58970.0,58969.0,0.0904]
[1725346925844,0.20890846,58970.0,58969.0,0.0904]
[1725346935146,0.20890846,58970.0,58969.0,0.0004]
[1725346939443,0.56970846,58970.0,58969.0,0.0004]
[1725346939848,0.20890846,58970.0,58969.0,0.0004]
[1725346940052,0.56970846,58970.0,58969.0,0.0004]
[1725346943454,0.20890846,58970.0,58969.0,0.0004]
[1725346943650,0.56970846,58970.0,58969.0,0.0004]
[1725346944056,1.67842846,58970.0,58969.0,0.0004]
[1725346944753,1.74625546,58970.0,58969.0,0.0004]
[1725346945257,1.74625546,58970.0,58959.0,0.00025446]
[1725346945258,0.067839,58960.0,58959.0,0.00025446]
[1725346945450,0.068239,58960.0,58959.0,0.00025446]
[1725346945760,0.136078,58960.0,58959.0,0.00025446]
[1725346946347,0.226078,58960.0,58959.0,0.00025446]
[1725346946653,0.226078,58960.0,58959.0,0.00625446]
[1725346946654,0.356078,58960.0,58959.0,0.00625446]
[1725346947355,1.464918,58960.0,58959.0,4.6e-07]
[1725346948663,1.532757,58960.0,58959.0,4.6e-07]
[1725346950168,1.535757,58960.0,58959.0,4.6e-07]
[1725346950367,1.448757,58960.0,58959.0,4.6e-07]
[1725346950969,1.809557,58960.0,58959.0,4.6e-07]
[1725346952764,1.8136864,58960.0,58959.0,4.6e-07]
[1725346958057,1.2136864,58960.0,58959.0,4.6e-07]
[1725346959364,1.8136864,58960.0,58959.0,4.6e-07]
[1725346959564,2.1744864,58960.0,58959.0,4.6e-07]
[1725346961462,1.5744864,58960.0,58959.0,4.6e-07]
[1725346962158,2.1744864,58960.0,58959.0,4.6e-07]
[1725346969759,1.5744864,58960.0,58959.0,4.6e-07]
[1725346971968,2.1744864,58960.0,58959.0,4.6e-07]
[1725346972166,1.5744864,58960.0,58959.0,4.6e-07]
[1725346972362,2.1744864,58960.0,58959.0,4.6e-07]
[1725346972563,1.5744864,58960.0,58959.0,4.6e-07]
[1725346974972,1.0656464,58960.0,58959.0,4.6e-07]
[1725346976772,0.9978074,58960.0,58959.0,4.6e-07]
[1725346980871,0.9299684,58960.0,58959.0,4.6e-07]
[1725346981379,1.10666779,58960.0,58959.0,4.6e-07]
[1725346981886,0.97150225,58960.0,58959.0,4.6e-07]
[1725346982283,0.925839,58960.0,58959.0,4.6e-07]
[1725346982505,0.795839,58960.0,58959.0,0.62408046]
[1725346982696,0.795839,58960.0,58959.0,0.11524046]
[1725346982697,0.728,58960.0,58959.0,0.11524046]
[1725346982985,0.3608,58968.0,58966.0,0.067832]
[1725346983173,0.3608,58968.0,58966.0,0.068232]
[1725346983378,0.3608,58968.0,58967.0,0.0904]
[1725346983682,0.3608,58968.0,58967.0,0.1398]
[1725346984569,0.3648,58968.0,58967.0,0.1398]
[1725346985073,0.004,58968.0,58967.0,0.1398]
[1725346986179,0.428628,58969.0,58967.0,0.1893]
[1725346986380,0.003,58968.0,58967.0,0.1893]
[1725346987378,0.428628,58969.0,58967.0,0.1893]
[1725346987379,0.431628,58969.0,58967.0,0.1893]
[1725346987579,0.431628,58969.0,58968.0,0.0004]
[1725346988383,0.428628,58969.0,58968.0,0.0004]
[1725346989771,0.068828,58969.0,58968.0,0.0004]
[1725346990580,0.074828,58969.0,58968.0,0.0014]
[1725346997779,0.074828,58969.0,58968.0,0.0485]
[1725346998178,0.164828,58969.0,58968.0,0.0014]
[1725346998375,0.232656,58969.0,58968.0,0.0014]
[1725347001382,0.593456,58969.0,58968.0,0.0014]
[1725347002385,0.59757113,58969.0,58968.0,0.0014]
[1725347003292,0.76477113,58969.0,58968.0,0.0014]
[1725347004587,1.27353113,58969.0,58968.0,0.0014]
[1725347005193,0.76477113,58969.0,58968.0,0.0014]
[1725347007501,0.62757113,58969.0,58968.0,0.0014]
[1725347008301,0.623456,58969.0,58968.0,0.0014]
[1725347011008,0.555628,58969.0,58968.0,0.0014]
[1725347016104,0.435628,58969.0,58968.0,0.0014]
[1725347016506,0.435628,58969.0,58968.0,0.00560599]
[1725347016808,0.435628,58969.0,58968.0,0.0014]
[1725347017210,0.3678,58969.0,58968.0,0.06923]
[1725347017720,0.3678,58969.0,58968.0,1.17799]
[1725347017921,0.3678,58969.0,58968.0,1.228843]
[1725347018308,0.3678,58969.0,58968.0,1.2329905]
[1725347018612,0.3678,58969.0,58968.0,0.6329905]
[1725347018808,0.004,58974.0,58973.0,0.067824]
[1725347019017,0.004,58978.0,58977.0,0.067819]
[1725347019216,0.004,58985.0,58980.0,0.067816]
[1725347019514,0.067809,58986.0,58984.0,0.09]
[1725347019722,0.067809,58986.0,58985.0,0.0004]
[1725347021428,0.3608,58988.0,58985.0,0.0004]
[1725347021713,0.006,58986.0,58985.0,0.0014]
[1725347021905,0.006,58986.0,58985.0,0.001]
[1725347022132,0.006,58986.0,58985.0,0.002]
[1725347022504,0.016,58986.0,58985.0,0.002]
[1725347022916,0.016,58986.0,58985.0,0.092]
[1725347023113,0.01,58986.0,58985.0,0.091]
[1725347023313,0.01,58986.0,58985.0,0.092]
[1725347023915,0.077809,58986.0,58985.0,0.092]
[1725347025719,0.067809,58986.0,58985.0,0.092]
[1725347026617,0.067809,58986.0,58985.0,0.002]
[1725347028823,0.197809,58986.0,58985.0,0.002]
[1725347030629,0.13,58986.0,58985.0,0.06981]
[1725347031624,0.067804,58990.0,58985.0,0.06981]
[1725347031822,0.077804,58990.0,58989.0,0.0904]
[1725347032831,0.077804,58990.0,58989.0,0.0004]
[1725347033033,0.077804,58990.0,58989.0,0.0014]
[1725347033735,0.077804,58990.0,58989.0,0.0024]
[1725347036636,0.145608,58990.0,58989.0,0.0024]
[1725347036936,0.240408,58990.0,58989.0,0.0024]
[1725347037229,0.24455,58990.0,58989.0,0.0024]
[1725347037433,0.75311,58990.0,58989.0,0.0024]
[1725347038019,0.820914,58990.0,58989.0,0.0024]
[1725347038223,1.420914,58990.0,58989.0,1e-06]
[1725347040032,0.75311,58990.0,58989.0,1e-06]
[1725347040336,0.24455,58990.0,58989.0,1e-06]
[1725347041528,0.081946,58990.0,58989.0,1e-06]
[1725347042235,0.077804,58990.0,58989.0,1e-06]
[1725347045039,0.067804,58990.0,58989.0,1e-06]
[1725347047127,0.067804,58990.0,58989.0,0.230001]
[1725347048134,0.067804,58990.0,58989.0,0.297806]
[1725347050545,0.067804,58990.0,58989.0,0.30204731]
[1725347051241,0.36105446,58991.0,58989.0,0.30204731]
[1725347051441,0.36105446,58991.0,58990.0,0.067804]
[1725347051636,0.36105446,58991.0,58990.0,0.113704]
[1725347051838,0.36105446,58991.0,58990.0,0.114104]
[1725347052537,0.36205446,58991.0,58990.0,0.115104]
[1725347053934,0.00125446,58991.0,58990.0,0.115104]
[1725347054339,0.00225446,58991.0,58990.0,0.115104]
[1725347055431,0.00225446,58991.0,58990.0,0.116104]
[1725347058747,0.00225446,58991.0,58990.0,0.163304]
[1725347061945,0.00225446,58991.0,58990.0,0.253304]
[1725347065046,0.00225446,58991.0,58990.0,0.163304]
[1725347065243,0.00225446,58991.0,58990.0,0.253304]
[1725347065555,0.00125446,58991.0,58990.0,0.252304]
[1725347065751,0.00125446,58991.0,58990.0,0.253304]
[1725347065752,0.00225446,58991.0,58990.0,0.253304]
[1725347068456,0.00225446,58991.0,58990.0,0.206104]
[1725347069061,0.00225446,58991.0,58990.0,0.160204]
[1725347070084,0.07005746,58991.0,58990.0,0.160204]
[1725347072084,0.07005746,58991.0,58990.0,0.0924]
[1725347078583,0.00225446,58991.0,58990.0,0.0914]
[1725347078770,0.00225446,58991.0,58990.0,0.0924]
[1725347078975,0.00125446,58991.0,58990.0,0.0914]
[1725347079375,0.00225446,58991.0,58990.0,0.0924]
[1725347079593,0.00225446,58991.0,58990.0,0.160204]
[1725347081286,0.00125446,58991.0,58990.0,0.22697414]
[1725347081490,0.00225446,58991.0,58990.0,0.22797414]
[1725347083695,0.00125446,58991.0,58990.0,0.22697414]
[1725347083889,0.00225446,58991.0,58990.0,0.22697414]
[1725347084594,0.00225446,58991.0,58990.0,0.160204]
[1725347084887,0.00225446,58991.0,58990.0,0.159204]
[1725347085387,0.00225446,58991.0,58990.0,0.160204]
[1725347085893,0.00125446,58991.0,58990.0,1.15771954]
[1725347086091,0.004,58997.0,58996.0,0.067797]
[1725347086287,0.113093,59000.0,58997.0,0.067796]
[1725347086480,0.113093,59000.0,58999.0,0.0904]
[1725347086681,0.113093,59000.0,58999.0,0.09]
[1725347087695,0.00025423,59005.0,58999.0,0.09]
[1725347087889,0.00025423,59005.0,59004.0,0.0904]
[1725347088487,0.00025423,59005.0,59004.0,0.158188]
[1725347089188,0.00125423,59005.0,59004.0,0.159188]
[1725347089697,0.00225423,59005.0,59004.0,0.160188]
[1725347090584,0.00225423,59005.0,59004.0,0.16435352]
[1725347091993,0.00225423,59005.0,59004.0,0.52515352]
[1725347093387,0.00225423,59005.0,59004.0,0.57597717]
[1725347093605,0.00225423,59005.0,59004.0,0.52515352]
[1725347093787,0.00225423,59005.0,59004.0,0.57597717]
[1725347094685,0.00225423,59005.0,59004.0,0.52515352]
[1725347101199,0.07004123,59005.0,59004.0,0.00656552]
[1725347101402,0.07004123,59005.0,59004.0,0.09656552]
[1725347101913,0.07004123,59005.0,59004.0,0.00656552]
[1725347102098,0.16004123,59005.0,59004.0,0.00656552]
[1725347102405,0.16004123,59005.0,59004.0,0.09656552]
[1725347102406,0.07004123,59005.0,59004.0,0.09656552]
[1725347102797,0.13782823,59005.0,59004.0,0.09656552]
[1725347103014,0.33782823,59005.0,59004.0,0.0024]
[1725347104506,0.34190375,59005.0,59004.0,0.0024]
[1725347105809,1.45034375,59005.0,59004.0,0.0024]
[1725347106105,0.85034375,59005.0,59004.0,0.0024]
[1725347106517,1.44934375,59005.0,59004.0,0.0024]
[1725347107094,1.44834375,59005.0,59004.0,0.0014]
[1725347107403,1.44934375,59005.0,59004.0,0.0024]